fUST/lending_fUST_20250810
["ID","MTS","AMOUNT","RATE_DAILY","PERIOD"]
[378329254,1754827535001,3083.45915461,0.00019997,2]
[378329257,1754827537006,460.0,0.00019997,2]
[378329259,1754827557450,283.598104,0.00013699,2]
[378329260,1754827559944,460.0,0.00019997,2]
[378329263,1754827562808,1321.29,0.00019997,2]
[378329264,1754827563697,300.0,0.00019997,2]
[378329265,1754827565434,460.0,0.00019997,2]
[378329268,1754827577358,460.0,0.00019997,2]
[378329269,1754827577646,1611.72332195,0.00019899,2]
[378329270,1754827582736,460.0,0.00019997,2]
[378329275,1754827584844,402.34077693,0.00019997,2]
[378329276,1754827588885,460.0,0.00019997,2]
[378329277,1754827597210,1200.0,0.00019997,2]
[378329278,1754827598113,460.0,0.00019997,2]
[378329280,1754827616394,460.0,0.00019997,2]
[378329281,1754827617387,460.0,0.00019997,2]
[378329282,1754827618699,460.0,0.00019997,2]
[378329283,1754827618858,460.0,0.00019997,2]
[378329284,1754827618886,496.69664594,0.00019997,2]
[378329285,1754827625836,279.12354963,0.000199,2]
[378329286,1754827625863,5320.36751845,0.000199,2]
[378329287,1754827627559,460.0,0.00019997,2]
[378329288,1754827631196,5000.0,0.00019997,2]
[378329289,1754827632437,1266.23,0.00019997,2]
[378329290,1754827633234,-460.0,0.00019998,2]
[378329291,1754827633256,-254.82731221,0.00019998,2]
[378329292,1754827633276,-460.0,0.00019998,2]
[378329293,1754827633299,-460.0,0.00019998,2]
[378329294,1754827633319,-460.0,0.00019998,2]
[378329295,1754827633339,-460.0,0.00019998,2]
[378329296,1754827633360,-500.0,0.00019998,2]
[378329297,1754827633381,-460.0,0.00019998,2]
[378329298,1754827633402,-460.0,0.00019998,2]
[378329299,1754827633423,-505.32299924,0.00019998,2]
[378329300,1754827633445,-460.0,0.00019998,2]
[378329301,1754827633465,-460.0,0.00019998,2]
[378329302,1754827633486,-460.0,0.00019998,2]
[378329303,1754827633506,-460.0,0.00019998,2]
[378329304,1754827633526,-460.0,0.00019998,2]
[378329305,1754827633547,-460.0,0.00019998,2]
[378329306,1754827633567,-460.0,0.00019998,2]
[378329307,1754827633588,-460.0,0.00019998,2]
[378329308,1754827633607,-234.04217954,0.00019998,2]
[378329309,1754827633626,-460.0,0.00019998,2]
[378329310,1754827633646,-460.0,0.00019998,2]
[378329311,1754827633667,-500.0,0.00019998,2]
[378329312,1754827633687,-460.0,0.00019998,2]
[378329313,1754827633708,-835.88,0.00019998,2]
[378329314,1754827633728,-460.0,0.00019998,2]
[378329315,1754827633748,-460.0,0.00019998,2]
[378329316,1754827633768,-50000.0,0.00019998,2]
[378329317,1754827633789,-54.78425312,0.00019999,2]
[378329318,1754827633808,-460.0,0.00019999,2]
[378329319,1754827633828,-356.32633799,0.00019999,2]
[378329320,1754827633848,-858.88,0.00019999,2]
[378329321,1754827633869,-807.51,0.00019999,2]
[378329322,1754827633889,-190.97940624,0.00019999,2]
[378329323,1754827633909,-283.598104,0.00020187,2]
[378329324,1754827633929,-460.0,0.00020271,2]
[378329325,1754827633953,-460.0,0.00020271,2]
[378329326,1754827633975,-460.0,0.00020271,2]
[378329327,1754827633997,-460.0,0.00020271,2]
[378329328,1754827634020,-460.0,0.00020271,2]
[378329329,1754827634041,-460.0,0.00020271,2]
[378329330,1754827634062,-154.56288401,0.00020271,2]
[378329331,1754827634083,-460.0,0.00020271,2]
[378329332,1754827634104,-460.0,0.00020271,2]
[378329333,1754827634125,-460.0,0.00020271,2]
[378329334,1754827634145,-378.9157829,0.00020271,2]
[378329335,1754827634165,-460.0,0.00020271,2]
[378329336,1754827634186,-460.0,0.00020271,2]
[378329337,1754827634208,-1120.1,0.00020271,2]
[378329338,1754827634229,-460.0,0.00020271,2]
[378329339,1754827634252,-460.0,0.00020271,2]
[378329340,1754827634273,-460.0,0.00020271,2]
[378329341,1754827634295,-460.0,0.00020271,2]
[378329342,1754827634315,-460.0,0.00020271,2]
[378329343,1754827634338,-460.0,0.00020271,2]
[378329344,1754827634359,-460.0,0.00020271,2]
[378329345,1754827634380,-460.0,0.00020271,2]
[378329346,1754827634402,-460.0,0.00020271,2]
[378329347,1754827634421,-463.75473631,0.00020271,2]
[378329348,1754827634442,-460.0,0.00020271,2]
[378329349,1754827634464,-460.0,0.00020271,2]
[378329350,1754827634486,-460.0,0.00020271,2]
[378329351,1754827634506,-460.0,0.00020271,2]
[378329352,1754827634526,-460.0,0.00020271,2]
[378329353,1754827634547,-460.0,0.00020271,2]
[378329354,1754827634570,-460.0,0.00020271,2]
[378329355,1754827634590,-469.93401615,0.00020271,2]
[378329356,1754827634611,-460.0,0.00020271,2]
[378329357,1754827634632,-460.0,0.00020271,2]
[378329358,1754827634652,-460.0,0.00020271,2]
[378329359,1754827634674,-460.0,0.00020271,2]
[378329360,1754827634694,-460.0,0.00020271,2]
[378329361,1754827634714,-460.0,0.00020271,2]
[378329362,1754827634743,-460.0,0.00020271,2]
[378329363,1754827634767,-460.0,0.00020271,2]
[378329364,1754827634792,-460.0,0.00020271,2]
[378329365,1754827634813,-460.0,0.00020271,2]
[378329366,1754827634834,-460.0,0.00020271,2]
[378329367,1754827634855,-460.0,0.00020271,2]
[378329368,1754827634876,-460.0,0.00020271,2]
[378329369,1754827634896,-460.0,0.00020271,2]
[378329370,1754827634916,-465.89057448,0.00020271,2]
[378329371,1754827634940,-460.0,0.00020271,2]
[378329372,1754827634962,-951.74,0.00020271,2]
[378329373,1754827634984,-460.0,0.00020271,2]
[378329374,1754827635008,-1266.23,0.00020271,2]
[378329375,1754827635035,-192.54627598,0.00020271,2]
[378329376,1754827635056,-155.22864052,0.00020271,2]
[378329377,1754827635078,-460.0,0.00020272,2]
[378329378,1754827635099,-460.0,0.00020272,2]
[378329379,1754827635120,-394.36,0.00020272,2]
[378329380,1754827635142,-527.95,0.00020272,2]
[378329381,1754827635163,-460.0,0.00020272,2]
[378329382,1754827635299,-460.0,0.00020272,2]
[378329383,1754827635319,-460.0,0.00020272,2]
[378329384,1754827635340,-460.0,0.00020272,2]
[378329385,1754827635361,-477.17215967,0.00020272,2]
[378329386,1754827635382,-460.0,0.00020272,2]
[378329387,1754827635403,-472.40466051,0.00020272,2]
[378329388,1754827635425,-460.0,0.00020272,2]
[378329389,1754827635446,-460.0,0.00020272,2]
[378329390,1754827635467,-512.64545503,0.00020272,2]
[378329391,1754827635487,-460.0,0.00020272,2]
[378329392,1754827635508,-460.0,0.00020272,2]
[378329393,1754827635531,-460.0,0.00020272,2]
[378329394,1754827635552,-460.0,0.00020272,2]
[378329395,1754827635573,-460.0,0.00020272,2]
[378329396,1754827635595,-860.34,0.00020272,2]
[378329397,1754827635615,-460.0,0.00020272,2]
[378329398,1754827635634,-460.0,0.00020272,2]
[378329399,1754827635655,-460.0,0.00020272,2]
[378329400,1754827635677,-460.0,0.00020272,2]
[378329401,1754827635698,-460.0,0.00020272,2]
[378329402,1754827635718,-460.0,0.00020272,2]
[378329403,1754827635738,-460.0,0.00020272,2]
[378329404,1754827635759,-460.0,0.00020272,2]
[378329405,1754827635779,-514.07092111,0.00020272,2]
[378329406,1754827635800,-460.0,0.00020272,2]
[378329407,1754827635820,-460.0,0.00020272,2]
[378329408,1754827635841,-460.0,0.00020272,2]
[378329409,1754827635861,-460.0,0.00020272,2]
[378329410,1754827635881,-305.35,0.00020272,2]
[378329411,1754827635902,-460.0,0.00020272,2]
[378329412,1754827635922,-460.0,0.00020272,2]
[378329413,1754827635947,-460.0,0.00020272,2]
[378329414,1754827635968,-460.0,0.00020272,2]
[378329415,1754827635989,-460.0,0.00020272,2]
[378329416,1754827636011,-460.0,0.00020272,2]
[378329417,1754827636036,-460.0,0.00020272,2]
[378329418,1754827636058,-460.0,0.00020272,2]
[378329419,1754827636080,-150.88458714,0.00020272,2]
[378329420,1754827636101,-460.0,0.00020272,2]
[378329421,1754827636122,-460.0,0.00020272,2]
[378329422,1754827636142,-460.0,0.00020272,2]
[378329423,1754827636164,-500.0,0.00020272,2]
[378329424,1754827636185,-212.37286411,0.00020272,2]
[378329425,1754827636205,-198.77852942,0.00020272,2]
[378329426,1754827636226,-151.0,0.00020272,2]
[378329427,1754827636248,-835.88,0.00020272,2]
[378329428,1754827636274,-460.0,0.00020272,2]
[378329429,1754827636298,-460.0,0.00020272,2]
[378329430,1754827636320,-500.0,0.00020272,2]
[378329431,1754827636340,-342.5,0.00020273,2]
[378329432,1754827636361,-460.0,0.00020273,2]
[378329433,1754827636382,-460.0,0.00020273,2]
[378329434,1754827636401,-858.88,0.00020273,2]
[378329435,1754827636422,-807.51,0.00020273,2]
[378329436,1754827636447,-460.0,0.00020545,2]
[378329437,1754827636469,-460.0,0.00020545,2]
[378329438,1754827636489,-460.0,0.00020545,2]
[378329439,1754827636510,-460.0,0.00020545,2]
[378329440,1754827636530,-460.0,0.00020545,2]
[378329441,1754827636553,-460.0,0.00020545,2]
[378329442,1754827636574,-460.0,0.00020545,2]
[378329443,1754827636598,-460.0,0.00020545,2]
[378329444,1754827636621,-1120.1,0.00020545,2]
[378329445,1754827636643,-460.0,0.00020545,2]
[378329446,1754827636664,-460.0,0.00020545,2]
[378329447,1754827636686,-179.09294013,0.00020545,2]
[378329448,1754827636707,-460.0,0.00020545,2]
[378329449,1754827636728,-460.0,0.00020545,2]
[378329450,1754827636750,-460.0,0.00020545,2]
[378329451,1754827636772,-460.0,0.00020545,2]
[378329452,1754827636794,-460.0,0.00020545,2]
[378329453,1754827636814,-460.0,0.00020545,2]
[378329454,1754827636835,-432.64427764,0.00020545,2]
[378329455,1754827636856,-460.0,0.00020545,2]
[378329456,1754827636878,-460.0,0.00020545,2]
[378329457,1754827636899,-460.0,0.00020545,2]
[378329458,1754827636920,-460.0,0.00020545,2]
[378329459,1754827636941,-373.29,0.00020545,2]
[378329460,1754827636964,-460.0,0.00020545,2]
[378329461,1754827636985,-460.0,0.00020545,2]
[378329462,1754827637006,-460.0,0.00020545,2]
[378329463,1754827637028,-460.0,0.00020545,2]
[378329464,1754827637049,-460.0,0.00020545,2]
[378329465,1754827637069,-460.0,0.00020545,2]
[378329466,1754827637089,-460.0,0.00020545,2]
[378329467,1754827637110,-951.74,0.00020545,2]
[378329468,1754827637132,-1266.23,0.00020545,2]
[378329469,1754827637152,-488.19,0.00020546,2]
[378329470,1754827637172,-460.0,0.00020546,2]
[378329471,1754827637192,-460.0,0.00020546,2]
[378329472,1754827637212,-460.0,0.00020546,2]
[378329473,1754827637233,-860.34,0.00020546,2]
[378329474,1754827637252,-53.36228693,0.00020546,2]
[378329476,1754827648359,460.0,0.00019997,2]
[378329477,1754827648475,5000.0,0.00019997,2]
[378329478,1754827651189,460.0,0.00019997,2]
[378329479,1754827651664,460.0,0.00019997,2]
[378329480,1754827658728,460.0,0.00019997,2]
[378329482,1754827661956,460.0,0.00019997,2]
[378329483,1754827664253,460.0,0.00019997,2]
[378329484,1754827664429,193.40248155,0.00019997,2]
[378329485,1754827664453,4806.59751845,0.00019997,2]
[378329486,1754827670352,460.0,0.00019997,2]
[378329487,1754827678785,900.42,0.00019997,2]
[378329488,1754827680145,5000.0,0.00019997,2]
[378329489,1754827684822,460.0,0.00019997,2]
[378329490,1754827694208,460.0,0.00019997,2]
[378329491,1754827695342,5000.0,0.00019997,2]
[378329493,1754827696780,989.71,0.00019997,2]
[378329494,1754827700102,460.0,0.00019997,2]
[378329495,1754827700253,460.0,0.00019997,2]
[378329496,1754827702658,460.0,0.00019997,2]
[378329497,1754827703114,169.12,0.00019997,2]
[378329498,1754827704401,374.15248155,0.00019997,2]
[378329499,1754827704424,85.84751845,0.00019997,2]
[378329500,1754827704846,460.0,0.00019997,2]
[378329501,1754827708405,460.0,0.00019997,2]
[378329502,1754827709245,1924.97698924,0.000189,2]
[378329503,1754827711151,460.0,0.00019997,2]
[378329504,1754827711180,238.50189427,0.00019997,2]
[378329505,1754827711299,5000.0,0.00019997,2]
[378329506,1754827715704,1.84,0.00020997,15]
[378329507,1754827718756,460.0,0.00019997,2]
[378329508,1754827721273,460.0,0.00019997,2]
[378329510,1754827723553,460.0,0.00019997,2]
[378329511,1754827724252,460.0,0.00019997,2]
[378329512,1754827727619,5000.0,0.00019997,2]
[378329513,1754827730733,460.0,0.00019997,2]
[378329514,1754827734694,460.0,0.00019997,2]
[378329515,1754827736751,460.0,0.00019997,2]
[378329516,1754827741285,460.0,0.00019997,2]
[378329517,1754827743070,2690.67359804,0.00019997,2]
[378329518,1754827743094,2309.32640196,0.00019997,2]
[378329519,1754827743587,460.0,0.00019997,2]
[378329520,1754827746059,460.0,0.00019997,2]
[378329522,1754827754815,460.0,0.00019997,2]
[378329523,1754827757134,460.0,0.00019997,2]
[378329524,1754827758010,460.0,0.00019997,2]
[378329525,1754827759528,5000.0,0.00019997,2]
[378329526,1754827759653,460.0,0.00019997,2]
[378329527,1754827759877,460.0,0.00019997,2]
[378329528,1754827763110,460.0,0.00019997,2]
[378329529,1754827764286,948.47,0.00019997,2]
[378329530,1754827767066,460.0,0.00019997,2]
[378329531,1754827770801,460.0,0.00019997,2]
[378329532,1754827779004,5000.0,0.00019997,2]
[378329533,1754827780320,223.580165,0.00019398,2]
[378329534,1754827780759,257.72216786,0.00019663,2]
[378329540,1754827785208,460.0,0.00019997,2]
[378329541,1754827791091,460.0,0.00019997,2]
[378329542,1754827791577,460.0,0.00019997,2]
[378329543,1754827796798,280.90126518,0.00019997,2]
[378329544,1754827796821,179.09873482,0.00019997,2]
[378329545,1754827797658,5000.0,0.00019997,2]
[378329546,1754827801985,687.34,0.00019997,2]
[378329547,1754827802958,460.0,0.00019997,2]
[378329548,1754827805593,1200.0,0.00019997,2]
[378329552,1754827813449,5000.0,0.00019997,2]
[378329553,1754827814130,540.23411895,0.00019997,2]
[378329554,1754827823627,553.62526308,0.00019997,2]
[378329555,1754827827483,460.0,0.00019997,2]
[378329556,1754827827571,5741.64440194,0.000199,2]
[378329557,1754827830164,178.05748121,0.00019997,2]
[378329558,1754827830187,4821.94251879,0.00019997,2]
[378329559,1754827830460,460.0,0.00019997,2]
[378329626,1754827832459,-460.0,0.00019998,2]
[378329628,1754827832468,-460.0,0.00019998,2]
[378329630,1754827832478,-465.45423134,0.00019998,2]
[378329632,1754827832487,-460.0,0.00019998,2]
[378329634,1754827832496,-460.0,0.00019998,2]
[378329637,1754827832506,-470.63111393,0.00019998,2]
[378329639,1754827832515,-460.0,0.00019998,2]
[378329641,1754827832525,-460.0,0.00019998,2]
[378329643,1754827832534,-451.51948911,0.00019998,2]
[378329645,1754827832544,-460.0,0.00019998,2]
[378329647,1754827832553,-497.93,0.00019998,2]
[378329650,1754827832562,-460.0,0.00019998,2]
[378329652,1754827832572,-460.0,0.00019998,2]
[378329655,1754827832581,-460.0,0.00019998,2]
[378329658,1754827832591,-460.0,0.00019998,2]
[378329661,1754827832600,-460.0,0.00019998,2]
[378329664,1754827832609,-460.0,0.00019998,2]
[378329667,1754827832619,-455.0,0.00019998,2]
[378329670,1754827832628,-460.0,0.00019998,2]
[378329673,1754827832638,-464.48928358,0.00019998,2]
[378329676,1754827832648,-460.0,0.00019998,2]
[378329679,1754827832657,-460.0,0.00019998,2]
[378329681,1754827832667,-460.0,0.00019998,2]
[378329683,1754827832676,-460.0,0.00019998,2]
[378329684,1754827832686,-460.0,0.00019998,2]
[378329686,1754827832695,-460.0,0.00019998,2]
[378329688,1754827832707,-460.0,0.00019999,2]
[378329690,1754827832717,-1005.05,0.00019999,2]
[378329692,1754827832726,-1410.25790668,0.00020171,2]
[378329694,1754827832736,-460.0,0.0002027,2]
[378329696,1754827832745,-460.0,0.00020271,2]
[378329698,1754827832755,-980.08,0.00020271,2]
[378329700,1754827832764,-460.0,0.00020271,2]
[378329702,1754827832774,-900.42,0.00020271,2]
[378329704,1754827832783,-460.0,0.00020271,2]
[378329706,1754827832793,-460.0,0.00020271,2]
[378329708,1754827832802,-460.0,0.00020271,2]
[378329710,1754827832812,-460.0,0.00020271,2]
[378329712,1754827832821,-460.0,0.00020271,2]
[378329714,1754827832830,-460.0,0.00020271,2]
[378329716,1754827832840,-434.78184007,0.00020271,2]
[378329718,1754827832850,-460.0,0.00020271,2]
[378329720,1754827832860,-541.95,0.00020271,2]
[378329722,1754827832870,-460.0,0.00020271,2]
[378329724,1754827832879,-460.0,0.00020271,2]
[378329726,1754827832889,-460.0,0.00020271,2]
[378329728,1754827832899,-460.0,0.00020271,2]
[378329730,1754827832908,-460.0,0.00020271,2]
[378329732,1754827832918,-460.0,0.00020271,2]
[378329734,1754827832928,-460.0,0.00020271,2]
[378329736,1754827832937,-464.79285501,0.00020271,2]
[378329738,1754827832947,-460.0,0.00020271,2]
[378329740,1754827832957,-460.0,0.00020271,2]
[378329742,1754827832966,-460.0,0.00020271,2]
[378329744,1754827832975,-460.0,0.00020271,2]
[378329746,1754827832985,-460.0,0.00020271,2]
[378329747,1754827832996,-460.0,0.00020271,2]
[378329749,1754827833006,-948.47,0.00020271,2]
[378329751,1754827833015,-460.0,0.00020271,2]
[378329753,1754827833025,-460.0,0.00020271,2]
[378329755,1754827833035,-460.0,0.00020271,2]
[378329757,1754827833044,-460.0,0.00020271,2]
[378329759,1754827833054,-460.0,0.00020271,2]
[378329761,1754827833063,-460.0,0.00020271,2]
[378329763,1754827833076,-460.0,0.00020271,2]
[378329765,1754827833085,-354.0069968,0.00020271,2]
[378329767,1754827833094,-246.24118866,0.00020271,2]
[378329768,1754827833104,-460.0,0.00020271,2]
[378329770,1754827833114,-687.34,0.00020271,2]
[378329772,1754827833123,-460.0,0.00020271,2]
[378329774,1754827833132,-460.0,0.00020271,2]
[378329776,1754827833142,-460.0,0.00020271,2]
[378329778,1754827833151,-460.0,0.00020271,2]
[378329780,1754827833161,-460.0,0.00020272,2]
[378329782,1754827833171,-460.0,0.00020272,2]
[378329784,1754827833180,-460.0,0.00020272,2]
[378329786,1754827833191,-460.0,0.00020272,2]
[378329788,1754827833201,-460.0,0.00020272,2]
[378329790,1754827833211,-460.0,0.00020272,2]
[378329792,1754827833221,-460.0,0.00020272,2]
[378329794,1754827833231,-460.0,0.00020272,2]
[378329796,1754827833241,-460.0,0.00020272,2]
[378329798,1754827833251,-460.0,0.00020272,2]
[378329800,1754827833261,-460.0,0.00020272,2]
[378329802,1754827833270,-460.0,0.00020272,2]
[378329804,1754827833280,-460.0,0.00020272,2]
[378329806,1754827833290,-460.0,0.00020272,2]
[378329808,1754827833300,-460.0,0.00020272,2]
[378329810,1754827833309,-460.0,0.00020272,2]
[378329812,1754827833319,-460.0,0.00020272,2]
[378329814,1754827833329,-460.0,0.00020272,2]
[378329816,1754827833338,-509.01950658,0.00020272,2]
[378329818,1754827833348,-500.0,0.00020272,2]
[378329820,1754827833357,-1005.05,0.00020273,2]
[378329822,1754827833367,-597.82,0.00020545,2]
[378329824,1754827833376,-980.08,0.00020545,2]
[378329826,1754827833385,-460.0,0.00020545,2]
[378329828,1754827833394,-900.42,0.00020545,2]
[378329830,1754827833404,-460.0,0.00020545,2]
[378329832,1754827833413,-460.0,0.00020545,2]
[378329833,1754827833422,-460.0,0.00020545,2]
[378329835,1754827833432,-460.0,0.00020545,2]
[378329837,1754827833441,-460.0,0.00020545,2]
[378329839,1754827833451,-297.31,0.00020545,2]
[378329841,1754827833462,-460.0,0.00020545,2]
[378329843,1754827833471,-460.0,0.00020545,2]
[378329845,1754827833481,-460.0,0.00020545,2]
[378329847,1754827833490,-460.0,0.00020545,2]
[378329849,1754827833499,-460.0,0.00020545,2]
[378329851,1754827833509,-460.0,0.00020545,2]
[378329853,1754827833518,-460.0,0.00020545,2]
[378329855,1754827833528,-460.0,0.00020545,2]
[378329857,1754827833537,-460.0,0.00020545,2]
[378329859,1754827833547,-386.61780297,0.00020545,2]
[378329862,1754827833560,-561.85219703,0.00020545,2]
[378329864,1754827833570,-460.0,0.00020545,2]
[378329866,1754827833580,-460.0,0.00020545,2]
[378329868,1754827833590,-460.0,0.00020545,2]
[378329870,1754827833599,-185.27928532,0.00020545,2]
[378329872,1754827833612,-274.72071468,0.00020545,2]
[378329874,1754827833622,-25.27928532,0.00020545,2]
[378329879,1754827833663,460.0,0.00019997,2]
[378329939,1754827835416,460.0,0.00019997,2]
[378330021,1754827838038,460.0,0.00019997,2]
[378330176,1754827839677,-460.0,0.00020271,2]
[378330178,1754827839687,-460.0,0.00020271,2]
[378330180,1754827839696,-434.72071468,0.00020545,2]
[378330182,1754827839707,-460.0,0.00020545,2]
[378330184,1754827839717,-687.34,0.00020545,2]
[378330186,1754827839727,-460.0,0.00020545,2]
[378330188,1754827839736,-460.0,0.00020545,2]
[378330190,1754827839745,-460.0,0.00020545,2]
[378330192,1754827839754,-460.0,0.00020545,2]
[378330194,1754827839764,-460.0,0.00020545,2]
[378330196,1754827839773,-460.0,0.00020546,2]
[378330198,1754827839782,-460.0,0.00020546,2]
[378330200,1754827839791,-460.0,0.00020546,2]
[378330202,1754827839801,-460.0,0.00020546,2]
[378330203,1754827839810,-460.0,0.00020546,2]
[378330204,1754827839819,-460.0,0.00020546,2]
[378330205,1754827839828,-460.0,0.00020546,2]
[378330206,1754827839838,-460.0,0.00020546,2]
[378330207,1754827839847,-460.0,0.00020546,2]
[378330208,1754827839856,-460.0,0.00020546,2]
[378330209,1754827839865,-460.0,0.00020546,2]
[378330210,1754827839875,-460.0,0.00020546,2]
[378330211,1754827839884,-405.61,0.00020546,2]
[378330212,1754827839895,-835.88,0.00020546,2]
[378330213,1754827839904,-460.0,0.00020546,2]
[378330214,1754827839914,-460.0,0.00020546,2]
[378330215,1754827839923,-460.0,0.00020546,2]
[378330216,1754827839933,-460.0,0.00020546,2]
[378330217,1754827839942,-460.0,0.00020546,2]
[378330218,1754827839952,-460.0,0.00020546,2]
[378330219,1754827839962,-573.48,0.00020546,2]
[378330220,1754827839972,-460.0,0.00020546,2]
[378330221,1754827839981,-463.94371636,0.00020546,2]
[378330222,1754827839993,-407.38060029,0.00020546,2]
[378330223,1754827840006,-52.61939971,0.00020546,2]
[378330224,1754827840016,-460.0,0.00020546,2]
[378330225,1754827840025,-460.0,0.00020546,2]
[378330226,1754827840035,-460.0,0.00020546,2]
[378330227,1754827840044,-460.0,0.00020546,2]
[378330228,1754827840054,-460.0,0.00020546,2]
[378330229,1754827840064,-406.63771307,0.00020546,2]
[378330230,1754827840073,-460.0,0.00020546,2]
[378330231,1754827840082,-1005.05,0.00020547,2]
[378330232,1754827840092,-500.0,0.00020573,2]
[378330233,1754827840101,-500.0,0.00020573,2]
[378330234,1754827840111,-502.65536766,0.00020573,2]
[378330235,1754827840120,-500.0,0.00020573,2]
[378330236,1754827840129,-500.0,0.00020573,2]
[378330237,1754827840139,-218.22,0.00020577,3]
[378330238,1754827840148,-2078.62100355,0.00020587,2]
[378330239,1754827840160,-90483.68844742,0.00020587,2]
[378330240,1754827840169,-500.0,0.00020677,2]
[378330241,1754827840179,-460.0,0.00020677,2]
[378330242,1754827840189,-460.0,0.00020677,2]
[378330243,1754827840198,-460.0,0.00020677,2]
[378330244,1754827840208,-460.0,0.00020677,2]
[378330245,1754827840217,-460.0,0.00020677,2]
[378330246,1754827840226,-2650.55,0.00020677,2]
[378330248,1754827840235,-701.47,0.00020677,2]
[378330249,1754827840245,-469.50243742,0.00020677,2]
[378330250,1754827840254,-460.0,0.00020677,2]
[378330251,1754827840263,-460.0,0.00020677,2]
[378330252,1754827840273,-938.98,0.00020677,2]
[378330253,1754827840282,-460.0,0.00020677,2]
[378330254,1754827840291,-460.0,0.00020677,2]
[378330255,1754827840300,-460.0,0.00020677,2]
[378330256,1754827840309,-460.0,0.00020677,2]
[378330257,1754827840319,-460.0,0.00020677,2]
[378330258,1754827840328,-460.0,0.00020677,2]
[378330259,1754827840338,-500.0,0.00020685,2]
[378330260,1754827840347,-357.33102713,0.00020686,2]
[378330261,1754827840356,-460.0,0.00020686,2]
[378330262,1754827840366,-460.0,0.00020686,2]
[378330263,1754827840375,-500.0,0.00020686,2]
[378330264,1754827840384,-460.0,0.00020686,2]
[378330265,1754827840393,-495.17,0.00020686,2]
[378330266,1754827840403,-655.04,0.00020686,2]
[378330267,1754827840412,-460.0,0.00020686,2]
[378330268,1754827840421,-500.0,0.00020687,2]
[378330269,1754827840430,-500.0,0.00020687,2]
[378330270,1754827840439,-571.44,0.00020687,2]
[378330271,1754827840449,-194.53,0.0002081,3]
[378330272,1754827840458,-583.59,0.0002081,3]
[378330273,1754827840467,-389.06,0.00020811,3]
[378330275,1754827840477,-460.0,0.00020819,2]
[378330277,1754827840486,-460.0,0.00020819,2]
[378330279,1754827840495,-460.0,0.00020819,2]
[378330281,1754827840504,-951.74,0.00020819,2]
[378330283,1754827840513,-1266.23,0.00020819,2]
[378330285,1754827840522,-980.08,0.00020819,2]
[378330287,1754827840531,-900.42,0.00020819,2]
[378330289,1754827840541,-460.0,0.00020819,2]
[378330291,1754827840550,-569.14,0.00020819,2]
[378330293,1754827840559,-460.0,0.00020819,2]
[378330295,1754827840568,-460.0,0.00020819,2]